fUSD/lending_fUSD_20250219
["ID","MTS","AMOUNT","RATE_DAILY","PERIOD"]
[353669457,1739986993328,-500.0,0.00011123,2]
[353669458,1739986993351,-578.38,0.00011123,2]
[353669459,1739986993373,-500.0,0.00011123,2]
[353669460,1739986993396,-1857.05,0.00011123,2]
[353669461,1739986993418,-2496.27,0.00011123,2]
[353669462,1739986993440,-500.0,0.00011123,2]
[353669463,1739986993462,-500.0,0.00011123,2]
[353669464,1739986993486,-2518.5,0.00011123,2]
[353669465,1739986993509,-840.45,0.00011123,2]
[353669466,1739986993531,-500.0,0.00011123,2]
[353669467,1739986993554,-3303.06,0.00011123,2]
[353669468,1739986993576,-901.36,0.00011123,2]
[353669469,1739986993601,-1610.13,0.00011123,2]
[353669470,1739986993627,-2828.85,0.00011123,2]
[353669471,1739986993650,-589.07,0.00011123,2]
[353669472,1739986993673,-1567.58,0.00011123,2]
[353669473,1739986993698,-500.0,0.00011123,2]
[353669474,1739986993722,-1832.34,0.00011123,2]
[353669475,1739986993747,-5677.91,0.00011123,2]
[353669476,1739986993770,-500.0,0.00011123,2]
[353669477,1739986993793,-845.34,0.00011123,2]
[353669478,1739986993815,-573.91,0.00011123,2]
[353669479,1739986993839,-1957.19,0.00011123,2]
[353669480,1739986993861,-504.11,0.00011123,2]
[353669481,1739986993885,-535.78,0.00011123,2]
[353669482,1739986993909,-850.34,0.00011123,2]
[353669483,1739986993933,-1048.17,0.00011123,2]
[353669484,1739986993956,-767.34,0.00011123,2]
[353669485,1739986993981,-563.62,0.00011123,2]
[353669486,1739986994004,-1123.94,0.00011123,2]
[353669487,1739986994027,-1091.09,0.00011123,2]
[353669488,1739986994050,-556.32,0.00011123,2]
[353669489,1739986994074,-2302.95,0.00011123,2]
[353669490,1739986994096,-500.0,0.00011123,2]
[353669491,1739986994129,-1864.63,0.00011123,2]
[353669492,1739986994155,-500.0,0.00011123,2]
[353669493,1739986994180,-500.0,0.00011123,2]
[353669494,1739986994204,-5552.0,0.000112,5]
[353669495,1739986994227,-942.36,0.00011204,2]
[353669496,1739986994251,-1523.74,0.00011204,2]
[353669497,1739986994276,-500.0,0.00011204,2]
[353669498,1739986994300,-1080.37,0.00011204,2]
[353669499,1739986994323,-1322.6,0.00011204,2]
[353669500,1739986994348,-2479.24,0.00011204,2]
[353669501,1739986994373,-1394.1,0.00011204,2]
[353669502,1739986994397,-1738.23,0.00011204,2]
[353669503,1739986994421,-7587.82,0.00011204,2]
[353669504,1739986994444,-1182.97,0.00011204,2]
[353669505,1739986994469,-843.47,0.00011204,2]
[353669506,1739986994493,-1544.29,0.00011204,2]
[353669507,1739986994518,-1833.33,0.00011204,2]
[353669508,1739986994541,-1519.95,0.00011204,2]
[353669509,1739986994563,-500.0,0.00011205,2]
[353669510,1739986994586,-500.0,0.00011205,2]
[353669511,1739986994608,-500.0,0.00011205,2]
[353669512,1739986994631,-500.0,0.00011205,2]
[353669513,1739986994653,-565.33888298,0.00011205,2]
[353669514,1739986994676,-500.0,0.00011205,2]
[353669515,1739986994698,-610.32,0.00011205,2]
[353669516,1739986994720,-500.0,0.00011205,2]
[353669517,1739986994743,-500.0,0.00011205,2]
[353669518,1739986994765,-650.1,0.00011205,2]
[353669519,1739986994787,-500.0,0.00011205,2]
[353669520,1739986994808,-500.0,0.00011205,2]
[353669521,1739986994831,-500.0,0.00011205,2]
[353669522,1739986994854,-500.0,0.00011205,2]
[353669523,1739986994877,-675.1,0.00011205,2]
[353669524,1739986994903,-500.0,0.00011205,2]
[353669525,1739986994927,-500.0,0.00011205,2]
[353669526,1739986994949,-572.6,0.00011205,2]
[353669527,1739986994974,-722.17,0.00011205,2]
[353669528,1739986994998,-500.0,0.00011205,2]
[353669529,1739986995022,-500.0,0.00011205,2]
[353669530,1739986995044,-500.0,0.00011205,2]
[353669531,1739986995068,-651.53,0.00011205,2]
[353669532,1739986995092,-500.0,0.00011205,2]
[353669533,1739986995119,-830.63,0.00011205,2]
[353669534,1739986995142,-500.0,0.00011205,2]
[353669535,1739986995167,-548.03,0.00011205,2]
[353669536,1739986995193,-624.44,0.00011205,2]
[353669537,1739986995215,-500.0,0.00011205,2]
[353669538,1739986995240,-586.77,0.00011205,2]
[353669539,1739986995265,-500.0,0.00011205,2]
[353669540,1739986995289,-500.0,0.00011205,2]
[353669541,1739986995315,-593.92,0.00011205,2]
[353669542,1739986995338,-500.0,0.00011205,2]
[353669543,1739986995361,-500.0,0.00011205,2]
[353669544,1739986995384,-500.0,0.00011205,2]
[353669545,1739986995408,-500.0,0.00011205,2]
[353669546,1739986995431,-500.0,0.00011205,2]
[353669547,1739986995454,-502.95,0.00011205,2]
[353669548,1739986995476,-500.0,0.00011205,2]
[353669549,1739986995499,-500.0,0.00011205,2]
[353669550,1739986995522,-665.85,0.00011205,2]
[353669551,1739986995545,-579.79,0.00011205,2]
[353669552,1739986995567,-500.0,0.00011205,2]
[353669553,1739986995590,-601.36,0.00011205,2]
[353669554,1739986995612,-1018.2,0.00011205,2]
[353669555,1739986995635,-670.1,0.00011205,2]
[353669556,1739986995658,-500.0,0.00011205,2]
[353669557,1739986995681,-684.29,0.00011205,2]
[353669558,1739986995704,-559.06,0.00011205,2]
[353669559,1739986995726,-561.35,0.00011205,2]
[353669560,1739986995749,-500.0,0.00011205,2]
[353669561,1739986995772,-509.07,0.00011205,2]
[353669562,1739986995794,-500.0,0.00011205,2]
[353669563,1739986995817,-500.0,0.00011205,2]
[353669564,1739986995840,-934.2,0.00011205,2]
[353669565,1739986995863,-500.0,0.00011205,2]
[353669566,1739986995886,-500.0,0.00011205,2]
[353669567,1739986995911,-891.28,0.00011205,2]
[353669568,1739986995933,-500.0,0.00011205,2]
[353669569,1739986995956,-452.70072675,0.00011205,2]
[353669570,1739986995980,-500.0,0.00011205,2]
[353669571,1739986996004,-500.0,0.00011205,2]
[353669572,1739986996229,-1071.39,0.00011205,2]
[353669573,1739986996253,-510.03916518,0.00011205,2]
[353669574,1739986996276,-500.0,0.00011205,2]
[353669575,1739986996299,-500.0,0.00011205,2]
[353669576,1739986996322,-500.0,0.00011205,2]
[353669577,1739986996346,-645.5,0.00011205,2]
[353669578,1739986996368,-983.6,0.00011205,2]
[353669579,1739986996392,-500.0,0.00011205,2]
[353669580,1739986996414,-500.0,0.00011205,2]
[353669581,1739986996437,-868.71,0.00011205,2]
[353669582,1739986996461,-500.0,0.00011205,2]
[353669583,1739986996487,-502.44,0.00011205,2]
[353669584,1739986996510,-500.0,0.00011205,2]
[353669585,1739986996533,-500.0,0.00011205,2]
[353669586,1739986996557,-747.49,0.00011205,2]
[353669587,1739986996580,-494.12,0.00011205,2]
[353669588,1739986996604,-500.0,0.00011205,2]
[353669589,1739986996628,-885.83,0.00011205,2]
[353669590,1739986996652,-500.0,0.00011205,2]
[353669591,1739986996676,-984.05,0.00011205,2]
[353669592,1739986996698,-500.0,0.00011205,2]
[353669593,1739986996721,-535.48,0.00011205,2]
[353669594,1739986996745,-500.0,0.00011205,2]
[353669595,1739986996768,-500.0,0.00011205,2]
[353669596,1739986996792,-670.73,0.00011205,2]
[353669597,1739986996817,-716.96,0.00011205,2]
[353669598,1739986996840,-500.0,0.00011205,2]
[353669599,1739986996863,-500.0,0.00011205,2]
[353669600,1739986996886,-500.0,0.00011205,2]
[353669601,1739986996911,-500.0,0.00011205,2]
[353669602,1739986996933,-500.0,0.00011205,2]
[353669603,1739986996956,-500.0,0.00011205,2]
[353669604,1739986996979,-603.61,0.00011205,2]
[353669605,1739986997003,-500.0,0.00011205,2]
[353669606,1739986997027,-750.72,0.00011205,2]
[353669607,1739986997051,-907.67,0.00011205,2]
[353669608,1739986997074,-797.8,0.00011205,2]
[353669609,1739986997097,-500.0,0.00011205,2]
[353669610,1739986997123,-500.0,0.00011205,2]
[353669611,1739986997147,-500.0,0.00011205,2]
[353669612,1739986997173,-1706.87,0.00011205,2]
[353669613,1739986997196,-621.37,0.00011205,2]
[353669614,1739986997220,-500.0,0.00011205,2]
[353669615,1739986997244,-584.87344488,0.00011205,2]
[353669616,1739986997267,-500.0,0.00011205,2]
[353669617,1739986997291,-832.9,0.00011205,2]
[353669618,1739986997315,-500.0,0.00011205,2]
[353669619,1739986997338,-1707.94,0.00011205,2]
[353669620,1739986997362,-500.0,0.00011205,2]
[353669621,1739986997385,-837.67,0.00011205,2]
[353669622,1739986997408,-561.36,0.00011205,2]
[353669623,1739986997432,-816.81,0.00011205,2]
[353669624,1739986997454,-1511.83,0.00011205,2]
[353669625,1739986997477,-500.0,0.00011205,2]
[353669626,1739986997500,-500.0,0.00011205,2]
[353669627,1739986997523,-2495.84,0.00011205,2]
[353669628,1739986997546,-744.98,0.00011205,2]
[353669629,1739986997569,-500.53,0.00011205,2]
[353669630,1739986997591,-500.0,0.00011205,2]
[353669631,1739986997615,-1354.12,0.00011205,2]
[353669632,1739986997637,-671.52,0.00011205,2]
[353669633,1739986997660,-500.0,0.00011205,2]
[353669634,1739986997684,-589.8,0.00011205,2]
[353669635,1739986997708,-1383.54,0.00011205,2]
[353669636,1739986997732,-500.0,0.00011205,2]
[353669637,1739986997755,-500.0,0.00011205,2]
[353669638,1739986997777,-500.0,0.00011205,2]
[353669639,1739986997799,-716.42,0.00011205,2]
[353669640,1739986997821,-500.0,0.00011205,2]
[353669641,1739986997845,-2477.23,0.00011205,2]
[353669642,1739986997868,-500.0,0.00011205,2]
[353669643,1739986997893,-857.39,0.00011205,2]
[353669644,1739986997916,-554.89,0.00011205,2]
[353669645,1739986997940,-2798.24,0.00011205,2]
[353669646,1739986997963,-1878.9,0.00011205,2]
[353669647,1739986997987,-500.0,0.00011205,2]
[353669648,1739986998010,-801.96,0.00011205,2]
[353669649,1739986998032,-500.0,0.00011205,2]
[353669650,1739986998054,-525.08,0.00011205,2]
[353669651,1739986998076,-740.28,0.00011205,2]
[353669652,1739986998100,-2438.11,0.00011205,2]
[353669653,1739986998127,-500.0,0.00011205,2]
[353669654,1739986998151,-1466.93,0.00011205,2]
[353669655,1739986998174,-500.0,0.00011205,2]
[353669656,1739986998199,-500.0,0.00011205,2]
[353669657,1739986998223,-1051.230903,0.00011205,2]
[353669658,1739986998248,-919.63,0.00011205,2]
[353669659,1739986998272,-2623.12,0.00011205,2]
[353669660,1739986998295,-1598.95,0.00011205,2]
[353669661,1739986998319,-634.27,0.00011205,2]
[353669662,1739986998342,-1161.17,0.00011205,2]
[353669663,1739986998365,-1158.67,0.00011205,2]
[353669664,1739986998390,-520.95,0.00011205,2]
[353669665,1739986998413,-500.0,0.00011205,2]
[353669666,1739986998437,-1063.45,0.00011205,2]
[353669667,1739986998460,-1214.87,0.00011205,2]
[353669668,1739986998484,-819.74,0.00011205,2]
[353669669,1739986998507,-674.04,0.00011205,2]
[353669670,1739986998529,-971.03,0.00011205,2]
[353669671,1739986998552,-1812.51,0.00011205,2]
[353669672,1739986998575,-2485.02,0.00011205,2]
[353669673,1739986998599,-931.1,0.00011205,2]
[353669674,1739986998623,-500.0,0.00011205,2]
[353669675,1739986998646,-1358.04,0.00011205,2]
[353669676,1739986998668,-669.81,0.00011205,2]
[353669677,1739986998691,-500.0,0.00011205,2]
[353669678,1739986998714,-500.0,0.00011205,2]
[353669679,1739986998738,-1305.34,0.00011205,2]
[353669680,1739986998762,-1060.018779,0.00011205,2]
[353669681,1739986998785,-500.0,0.00011205,2]
[353669682,1739986998807,-500.0,0.00011205,2]
[353669683,1739986998830,-702.74,0.00011205,2]
[353669684,1739986998854,-500.0,0.00011205,2]
[353669685,1739986998877,-500.0,0.00011205,2]
[353669686,1739986998903,-839.5,0.00011205,2]
[353669687,1739986998927,-1932.99,0.00011205,2]
[353669688,1739986998951,-819.06,0.00011205,2]
[353669689,1739986998975,-500.0,0.00011205,2]
[353669690,1739986999000,-1333.44,0.00011205,2]
[353669691,1739986999024,-1280.1,0.00011205,2]
[353669692,1739986999050,-1821.57,0.00011205,2]
[353669693,1739986999074,-500.0,0.00011205,2]
[353669694,1739986999098,-914.85,0.00011205,2]
[353669695,1739986999126,-560.88,0.00011205,2]
[353669696,1739986999150,-1378.48,0.00011205,2]
[353669697,1739986999177,-1471.53,0.00011205,2]
[353669698,1739986999202,-500.0,0.00011205,2]
[353669699,1739986999227,-1236.47,0.00011205,2]
[353669700,1739986999251,-2253.67,0.00011205,2]
[353669701,1739986999275,-1003.93,0.00011205,2]
[353669702,1739986999300,-1865.24,0.00011205,2]
[353669703,1739986999325,-618.28,0.00011205,2]
[353669704,1739986999348,-748.0,0.00011205,2]
[353669705,1739986999372,-1497.76,0.00011205,2]
[353669706,1739986999396,-725.12,0.00011205,2]
[353669707,1739986999419,-529.79,0.00011205,2]
[353669708,1739986999443,-2082.83,0.00011205,2]
[353669709,1739986999466,-500.0,0.00011205,2]
[353669710,1739986999491,-500.0,0.00011205,2]
[353669711,1739986999516,-500.0,0.00011205,2]
[353669712,1739986999541,-944.46,0.00011205,2]
[353669713,1739986999565,-1783.2,0.00011205,2]
[353669714,1739986999589,-2152.29,0.00011205,2]
[353669715,1739986999614,-1524.59,0.00011205,2]
[353669716,1739986999639,-681.33,0.00011205,2]
[353669717,1739986999664,-642.47,0.00011205,2]
[353669718,1739986999689,-1070.85,0.00011205,2]
[353669719,1739986999713,-500.0,0.00011205,2]
[353669720,1739986999737,-609.31,0.00011205,2]
[353669721,1739986999956,-500.0,0.00011205,2]
[353669722,1739986999986,-500.0,0.00011205,2]
[353669723,1739987000011,-1154.43,0.00011205,2]
[353669724,1739987000036,-1651.7,0.00011205,2]
[353669725,1739987000060,-1309.23,0.00011205,2]
[353669726,1739987000084,-616.66,0.00011205,2]
[353669727,1739987000110,-632.87,0.00011205,2]
[353669728,1739987000139,-500.0,0.00011205,2]
[353669729,1739987000163,-1552.62,0.00011205,2]
[353669730,1739987000189,-1776.39,0.00011205,2]
[353669731,1739987000213,-500.0,0.00011205,2]
[353669732,1739987000238,-856.54,0.00011205,2]
[353669733,1739987000262,-809.31,0.00011205,2]
[353669734,1739987000287,-1842.68,0.00011205,2]
[353669735,1739987000311,-500.0,0.00011205,2]
[353669736,1739987000338,-2266.81,0.00011205,2]
[353669737,1739987000363,-500.0,0.00011205,2]
[353669738,1739987000389,-886.63,0.00011205,2]
[353669739,1739987000415,-1658.86,0.00011205,2]
[353669740,1739987000442,-1962.68,0.00011205,2]
[353669741,1739987000467,-500.0,0.00011205,2]
[353669742,1739987000492,-807.37,0.00011205,2]
[353669743,1739987000516,-806.59,0.00011205,2]
[353669744,1739987000543,-500.0,0.00011205,2]
[353669745,1739987000568,-500.0,0.00011205,2]
[353669746,1739987000593,-2002.57,0.00011205,2]
[353669747,1739987000616,-500.0,0.00011205,2]
[353669748,1739987000640,-500.0,0.00011205,2]
[353669749,1739987000664,-570.48,0.00011205,2]
[353669750,1739987000688,-1658.32,0.00011205,2]
[353669751,1739987000713,-1296.83,0.00011205,2]
[353669752,1739987000739,-1882.15,0.00011205,2]
[353669753,1739987000766,-1608.39,0.00011205,2]
[353669754,1739987000792,-939.3,0.00011205,2]
[353669755,1739987000817,-857.33,0.00011205,2]
[353669756,1739987000840,-500.0,0.00011205,2]
[353669757,1739987000864,-1418.8,0.00011205,2]
[353669758,1739987000888,-500.0,0.00011205,2]
[353669759,1739987000914,-2632.01,0.00011205,2]
[353669760,1739987000938,-3867.58,0.00011205,2]
[353669761,1739987000961,-500.0,0.00011205,2]
[353669762,1739987000985,-500.0,0.00011205,2]
[353669763,1739987001009,-1411.22,0.00011205,2]
[353669764,1739987001033,-690.83,0.00011205,2]
[353669765,1739987001057,-500.0,0.00011205,2]
[353669766,1739987001081,-2069.19,0.00011205,2]
[353669767,1739987001105,-500.0,0.00011205,2]
[353669768,1739987001133,-1670.81,0.00011205,2]
[353669769,1739987001156,-769.82,0.00011205,2]
[353669770,1739987001180,-500.0,0.00011205,2]
[353669771,1739987001205,-867.41,0.00011205,2]
[353669772,1739987001230,-1765.3,0.00011205,2]
[353669773,1739987001255,-500.0,0.00011205,2]
[353669774,1739987001279,-1370.86,0.00011205,2]
[353669775,1739987001303,-500.0,0.00011205,2]
[353669776,1739987001327,-1531.76,0.00011205,2]
[353669777,1739987001352,-662.65,0.00011205,2]
[353669778,1739987001377,-633.19,0.00011205,2]
[353669779,1739987001402,-1131.87,0.00011205,2]
[353669780,1739987001426,-500.0,0.00011205,2]
[353669781,1739987001449,-578.38,0.00011205,2]
[353669782,1739987001473,-500.0,0.00011205,2]
[353669783,1739987001500,-1857.05,0.00011205,2]
[353669784,1739987001524,-2496.27,0.00011205,2]
[353669785,1739987001549,-500.0,0.00011205,2]
[353669786,1739987001573,-317.94349526,0.00011205,2]
[353669787,1739987001599,-2518.5,0.00011205,2]
[353669788,1739987001624,-840.45,0.00011205,2]
[353669789,1739987001649,-500.0,0.00011205,2]
[353669790,1739987001675,-3303.06,0.00011205,2]
[353669791,1739987001700,-901.36,0.00011205,2]
[353669792,1739987001726,-1610.13,0.00011205,2]
[353669793,1739987001752,-2828.85,0.00011205,2]
[353669794,1739987001777,-589.07,0.00011205,2]
[353669795,1739987001801,-1567.58,0.00011205,2]
[353669796,1739987001827,-500.0,0.00011205,2]
[353669797,1739987001853,-1832.34,0.00011205,2]
[353669798,1739987001880,-5677.91,0.00011205,2]
[353669799,1739987001909,-500.0,0.00011205,2]
[353669800,1739987001933,-845.34,0.00011205,2]
[353669801,1739987001958,-573.91,0.00011205,2]
[353669802,1739987001984,-1957.19,0.00011205,2]
[353669803,1739987002010,-504.11,0.00011205,2]
[353669804,1739987002037,-535.78,0.00011205,2]
[353669805,1739987002065,-850.34,0.00011205,2]
[353669806,1739987002093,-1048.17,0.00011205,2]
[353669807,1739987002120,-767.34,0.00011205,2]
[353669808,1739987002146,-563.62,0.00011205,2]
[353669809,1739987002173,-1123.94,0.00011205,2]
[353669810,1739987002197,-1091.09,0.00011205,2]
[353669811,1739987002222,-556.32,0.00011205,2]
[353669812,1739987002248,-2302.95,0.00011205,2]
[353669813,1739987002272,-500.0,0.00011205,2]
[353669814,1739987002298,-1864.63,0.00011205,2]
[353669815,1739987002323,-500.0,0.00011205,2]
[353669816,1739987002346,-500.0,0.00011205,2]
[353669817,1739987002370,-500.0,0.00011273,2]
[353669818,1739987002395,-500.0,0.00011287,2]
[353669819,1739987002419,-500.0,0.00011287,2]
[353669820,1739987002444,-244.62542963,0.00011287,2]
[353669821,1739987002467,-500.0,0.00011287,2]
[353669822,1739987002493,-610.32,0.00011287,2]
[353669823,1739987002517,-500.0,0.00011287,2]
[353669824,1739987002541,-500.0,0.00011287,2]
[353669825,1739987002565,-650.1,0.00011287,2]
[353669826,1739987002590,-500.0,0.00011287,2]
[353669827,1739987002613,-500.0,0.00011287,2]
[353669828,1739987002637,-500.0,0.00011287,2]
[353669829,1739987002660,-500.0,0.00011287,2]
[353669830,1739987002684,-675.1,0.00011287,2]
[353669831,1739987002707,-500.0,0.00011287,2]
[353669832,1739987002731,-500.0,0.00011287,2]
[353669833,1739987002754,-572.6,0.00011287,2]
[353669834,1739987002777,-722.17,0.00011287,2]
[353669835,1739987002801,-500.0,0.00011287,2]
[353669836,1739987002824,-414.00987751,0.00011287,2]
[353669837,1739987002847,-651.53,0.00011287,2]
[353669838,1739987002871,-500.0,0.00011287,2]
[353669839,1739987002897,-830.63,0.00011287,2]
[353669840,1739987002920,-500.0,0.00011287,2]
[353669841,1739987002944,-548.03,0.00011287,2]
[353669842,1739987002968,-624.44,0.00011287,2]
[353669843,1739987002992,-500.0,0.00011287,2]
[353669844,1739987003016,-586.77,0.00011287,2]
[353669845,1739987003040,-500.0,0.00011287,2]
[353669846,1739987003063,-500.0,0.00011287,2]
[353669847,1739987003088,-593.92,0.00011287,2]
[353669848,1739987003111,-500.0,0.00011287,2]
[353669849,1739987003137,-500.0,0.00011287,2]
[353669850,1739987003163,-500.0,0.00011287,2]
[353669851,1739987003187,-500.0,0.00011287,2]
[353669852,1739987003215,-500.0,0.00011287,2]
[353669853,1739987003239,-502.95,0.00011287,2]
[353669854,1739987003264,-500.0,0.00011287,2]
[353669855,1739987003288,-500.0,0.00011287,2]
[353669856,1739987003311,-665.85,0.00011287,2]
[353669857,1739987003335,-579.79,0.00011287,2]
[353669858,1739987003357,-500.0,0.00011287,2]
[353669859,1739987003380,-601.36,0.00011287,2]
[353669860,1739987003404,-1018.2,0.00011287,2]
[353669861,1739987003428,-670.1,0.00011287,2]
[353669862,1739987003452,-500.0,0.00011287,2]
[353669863,1739987003476,-684.29,0.00011287,2]
[353669864,1739987003499,-559.06,0.00011287,2]
[353669865,1739987003522,-561.35,0.00011287,2]
[353669866,1739987003545,-500.0,0.00011287,2]
[353669867,1739987003569,-509.07,0.00011287,2]
[353669868,1739987003594,-203.8113829,0.00011287,2]
[353669869,1739987003617,-284.36201045,0.00011287,2]
[353669870,1739987003641,-934.2,0.00011287,2]
[353669871,1739987003856,-500.0,0.00011287,2]
[353669872,1739987003880,-500.0,0.00011287,2]
[353669873,1739987003906,-891.28,0.00011287,2]
[353669874,1739987003928,-500.0,0.00011287,2]
[353669875,1739987004165,-508.96093645,0.00011287,2]
[353669876,1739987004190,-500.0,0.00011287,2]
[353669877,1739987004213,-1071.39,0.00011287,2]
[353669878,1739987004236,-500.0,0.00011287,2]
[353669879,1739987004258,-500.0,0.00011287,2]
[353669880,1739987004283,-500.0,0.00011287,2]
[353669881,1739987004306,-645.5,0.00011287,2]
[353669882,1739987004329,-983.6,0.00011287,2]
[353669883,1739987004352,-500.0,0.00011287,2]
[353669884,1739987004375,-500.0,0.00011287,2]
[353669885,1739987004398,-868.71,0.00011287,2]
[353669886,1739987004421,-500.0,0.00011287,2]
[353669887,1739987004443,-502.44,0.00011287,2]
[353669888,1739987004467,-500.0,0.00011287,2]
[353669889,1739987004490,-500.0,0.00011287,2]
[353669890,1739987004513,-747.49,0.00011287,2]
[353669891,1739987004536,-500.0,0.00011287,2]
[353669892,1739987004559,-885.83,0.00011287,2]
[353669893,1739987004582,-500.0,0.00011287,2]
[353669894,1739987004605,-984.05,0.00011287,2]
[353669895,1739987004627,-500.0,0.00011287,2]
[353669896,1739987004651,-535.48,0.00011287,2]
[353669897,1739987004673,-500.0,0.00011287,2]
[353669898,1739987004696,-500.0,0.00011287,2]
[353669899,1739987004719,-670.73,0.00011287,2]
[353669900,1739987004741,-716.96,0.00011287,2]
[353669901,1739987004764,-500.0,0.00011287,2]
[353669902,1739987004789,-500.0,0.00011287,2]
[353669903,1739987004812,-500.0,0.00011287,2]
[353669904,1739987004835,-500.0,0.00011287,2]
[353669905,1739987004857,-500.0,0.00011287,2]
[353669906,1739987004880,-500.0,0.00011287,2]
[353669907,1739987004907,-603.61,0.00011287,2]
[353669908,1739987004930,-500.0,0.00011287,2]
[353669909,1739987004953,-907.67,0.00011287,2]
[353669910,1739987004976,-750.72,0.00011287,2]
[353669911,1739987004999,-797.8,0.00011287,2]
[353669912,1739987005022,-500.0,0.00011287,2]
[353669913,1739987005046,-500.0,0.00011287,2]
[353669914,1739987005068,-500.0,0.00011287,2]
[353669915,1739987005092,-1706.87,0.00011287,2]
[353669916,1739987005116,-621.37,0.00011287,2]
[353669917,1739987005145,-500.0,0.00011287,2]
[353669918,1739987005168,-500.0,0.00011287,2]
[353669919,1739987005192,-832.9,0.00011287,2]
[353669920,1739987005217,-500.0,0.00011287,2]
[353669921,1739987005241,-1707.94,0.00011287,2]
[353669922,1739987005265,-500.0,0.00011287,2]
[353669923,1739987005288,-837.67,0.00011287,2]
[353669924,1739987005310,-561.36,0.00011287,2]
[353669925,1739987005334,-816.81,0.00011287,2]
[353669926,1739987005359,-1511.83,0.00011287,2]
[353669927,1739987005382,-500.0,0.00011287,2]
[353669928,1739987005405,-500.0,0.00011287,2]
[353669929,1739987005429,-2495.84,0.00011287,2]
[353669930,1739987005451,-744.98,0.00011287,2]
[353669931,1739987005474,-500.53,0.00011287,2]
[353669932,1739987005496,-500.0,0.00011287,2]
[353669933,1739987005519,-1354.12,0.00011287,2]
[353669934,1739987005541,-671.52,0.00011287,2]
[353669935,1739987005564,-500.0,0.00011287,2]
[353669936,1739987005586,-589.8,0.00011287,2]
[353669937,1739987005609,-1383.54,0.00011287,2]
[353669938,1739987005635,-500.0,0.00011287,2]
[353669939,1739987005658,-500.0,0.00011287,2]
[353669940,1739987005681,-500.0,0.00011287,2]
[353669941,1739987005703,-716.42,0.00011287,2]
[353669942,1739987005728,-500.0,0.00011287,2]
[353669943,1739987005752,-2477.23,0.00011287,2]
[353669944,1739987005775,-500.0,0.00011287,2]
[353669945,1739987005798,-857.39,0.00011287,2]
[353669946,1739987005820,-554.89,0.00011287,2]
[353669947,1739987005844,-2798.24,0.00011287,2]
[353669948,1739987005868,-1878.9,0.00011287,2]
[353669949,1739987005892,-500.0,0.00011287,2]
[353669950,1739987005917,-942.36,0.00011287,2]
[353669951,1739987005940,-801.96,0.00011287,2]
[353669952,1739987005963,-500.0,0.00011287,2]
[353669953,1739987005986,-525.08,0.00011287,2]
[353669954,1739987006010,-1523.74,0.00011287,2]
[353669955,1739987006032,-740.28,0.00011287,2]
[353669956,1739987006056,-2438.11,0.00011287,2]